[Event "Titled Tuesday Blitz March 29 Late 2022"]
[White "Stanisz, Patryk"]
[Black "Toncheva, Nadya"]
[WhiteFideId "1123106"]
[BlackFideId "2924056"]
[WhiteElo "1876"]
[BlackElo "1884"]
[Result "1-0"]
[Round "07"]
[TimeControl "180+1"]
[Date "2022.03.30"]
[WhiteClock "0:00:48"]
[BlackClock "0:01:20"]

1. d4 {[%clk 0:03:00]}  Nf6 {[%clk 0:02:59]} 2. c4 {[%clk 0:03:01]}  e6 {[%clk 0:02:59]} 3. Nc3 {[%clk 0:03:01]}  c5 {[%clk 0:03:00]} 4. d5 {[%clk 0:03:00]}  exd5 {[%clk 0:03:01]} 5. cxd5 {[%clk 0:03:01]}  d6 {[%clk 0:03:02]} 6. e4 {[%clk 0:03:01]}  g6 {[%clk 0:03:02]} 7. Nge2 {[%clk 0:03:01]}  Bg7 {[%clk 0:03:02]} 8. Ng3 {[%clk 0:03:02]}  h5 {[%clk 0:03:02]} 9. Be2 {[%clk 0:02:50]}  h4 {[%clk 0:03:01]} 10. Nf1 {[%clk 0:02:50]}  O-O {[%clk 0:03:01]} 11. Bg5 {[%clk 0:02:47]}  h3 {[%clk 0:02:58]} 12. g3 {[%clk 0:02:46]}  Na6 {[%clk 0:02:54]} 13. Ne3 {[%clk 0:02:36]}  Nc7 {[%clk 0:02:54]} 14. a4 {[%clk 0:02:35]}  b6 {[%clk 0:02:52]} 15. O-O {[%clk 0:02:23]}  Ba6 {[%clk 0:02:51]} 16. f4 {[%clk 0:02:00]}  Qe8 {[%clk 0:02:41]} 17. Bf3 {[%clk 0:01:19]}  Bxf1 {[%clk 0:02:25]} 18. Qxf1 {[%clk 0:01:20]}  Nd7 {[%clk 0:02:25]} 19. Qxh3 {[%clk 0:01:17]}  Bd4 {[%clk 0:02:15]} 20. Re1 {[%clk 0:01:16]}  c4 {[%clk 0:02:14]} 21. Kg2 {[%clk 0:01:13]}  Nc5 {[%clk 0:01:40]} 22. Nxc4 {[%clk 0:01:09]}  Nxa4 {[%clk 0:01:39]} 23. Nxd6 {[%clk 0:00:57]}  Qb8 {[%clk 0:01:32]} 24. Nxa4 {[%clk 0:00:57]}  Ne8 {[%clk 0:01:22]} 25. Nxe8 {[%clk 0:00:49]}  Qxe8 {[%clk 0:01:22]} 26. e5 {[%clk 0:00:47]}  Qxa4 {[%clk 0:01:20]} 27. Bf6 {[%clk 0:00:48]} 1-0


[Site "https://www.chess.com"]

[Event "Titled Tuesday Blitz March 29 Late 2022"]
[White "Sztokbant, Bernardo Vainzoff"]
[Black "Rastbod, Ali"]
[WhiteFideId "2115956"]
[BlackFideId "12567477"]
[WhiteElo "2237"]
[BlackElo "2200"]
[Result "1-0"]
[Round "07"]
[TimeControl "180+1"]
[Date "2022.03.30"]
[WhiteClock "0:00:05"]
[BlackClock "0:00:37"]

1. e4 {[%clk 0:03:00]}  e6 {[%clk 0:03:00]} 2. d4 {[%clk 0:03:00]}  d5 {[%clk 0:03:01]} 3. Nd2 {[%clk 0:03:01]}  Nc6 {[%clk 0:03:00]} 4. Ngf3 {[%clk 0:03:00]}  Nf6 {[%clk 0:03:01]} 5. e5 {[%clk 0:02:59]}  Nd7 {[%clk 0:03:01]} 6. c4 {[%clk 0:02:54]}  Be7 {[%clk 0:03:01]} 7. cxd5 {[%clk 0:02:49]}  exd5 {[%clk 0:03:02]} 8. Bd3 {[%clk 0:02:49]}  O-O {[%clk 0:02:59]} 9. O-O {[%clk 0:02:49]}  Nb4 {[%clk 0:02:59]} 10. Bb1 {[%clk 0:02:45]}  c5 {[%clk 0:02:59]} 11. a3 {[%clk 0:02:41]}  Nc6 {[%clk 0:02:59]} 12. dxc5 {[%clk 0:02:39]}  Nxc5 {[%clk 0:03:00]} 13. b4 {[%clk 0:02:37]}  Ne6 {[%clk 0:03:00]} 14. Nb3 {[%clk 0:02:35]}  b6 {[%clk 0:02:43]} 15. Qc2 {[%clk 0:02:33]}  g6 {[%clk 0:02:33]} 16. Qxc6 {[%clk 0:02:33]}  Ba6 {[%clk 0:02:33]} 17. Rd1 {[%clk 0:02:28]}  Rc8 {[%clk 0:02:30]} 18. Qa4 {[%clk 0:01:54]}  Be2 {[%clk 0:02:30]} 19. Re1 {[%clk 0:01:54]}  Bxf3 {[%clk 0:02:28]} 20. gxf3 {[%clk 0:01:55]}  Bg5 {[%clk 0:02:20]} 21. Bd3 {[%clk 0:01:23]}  Bxc1 {[%clk 0:02:17]} 22. Raxc1 {[%clk 0:01:24]}  Qg5+ {[%clk 0:02:17]} 23. Kh1 {[%clk 0:01:23]}  Nf4 {[%clk 0:02:18]} 24. Bf1 {[%clk 0:01:20]}  Qh4 {[%clk 0:02:07]} 25. b5 {[%clk 0:01:04]}  g5 {[%clk 0:02:00]} 26. Qd4 {[%clk 0:00:58]}  Qh5 {[%clk 0:01:54]} 27. Re3 {[%clk 0:00:46]}  Rfe8 {[%clk 0:01:35]} 28. Rc6 {[%clk 0:00:42]}  Rxc6 {[%clk 0:01:29]} 29. bxc6 {[%clk 0:00:43]}  Rc8 {[%clk 0:01:29]} 30. Qc3 {[%clk 0:00:33]}  Qg6 {[%clk 0:01:05]} 31. Nd4 {[%clk 0:00:30]}  h5 {[%clk 0:01:02]} 32. c7 {[%clk 0:00:25]}  Qb1 {[%clk 0:01:01]} 33. Re1 {[%clk 0:00:25]}  Qa2 {[%clk 0:00:58]} 34. Kg1 {[%clk 0:00:11]}  h4 {[%clk 0:00:52]} 35. e6 {[%clk 0:00:08]}  h3 {[%clk 0:00:37]} 36. e7 {[%clk 0:00:05]} 1-0


[Site "https://www.chess.com"]

[Event "Titled Tuesday Blitz March 29 Late 2022"]
[White "Tanenbaum, Zachary"]
[Black "Omariev, Maksim"]
[WhiteFideId "2060850"]
[BlackFideId "4193423"]
[WhiteElo "2168"]
[BlackElo "2518"]
[Result "1-0"]
[Round "07"]
[TimeControl "180+1"]
[Date "2022.03.30"]
[WhiteClock "0:01:26"]
[BlackClock "0:00:06"]

1. e4 {[%clk 0:02:58]}  c5 {[%clk 0:02:59]} 2. Nf3 {[%clk 0:02:58]}  d6 {[%clk 0:02:59]} 3. d4 {[%clk 0:02:58]}  cxd4 {[%clk 0:03:00]} 4. Nxd4 {[%clk 0:02:57]}  Nf6 {[%clk 0:03:01]} 5. Nc3 {[%clk 0:02:58]}  a6 {[%clk 0:03:01]} 6. Be3 {[%clk 0:02:57]}  Ng4 {[%clk 0:02:59]} 7. Bc1 {[%clk 0:02:57]}  Nf6 {[%clk 0:02:59]} 8. f3 {[%clk 0:02:56]}  e6 {[%clk 0:03:00]} 9. Be3 {[%clk 0:02:56]}  b5 {[%clk 0:03:00]} 10. Qd2 {[%clk 0:02:56]}  Nbd7 {[%clk 0:02:59]} 11. O-O-O {[%clk 0:02:56]}  b4 {[%clk 0:02:58]} 12. Nce2 {[%clk 0:02:55]}  d5 {[%clk 0:02:59]} 13. g4 {[%clk 0:02:55]}  dxe4 {[%clk 0:02:59]} 14. g5 {[%clk 0:02:55]}  Nd5 {[%clk 0:02:59]} 15. h4 {[%clk 0:02:54]}  Bb7 {[%clk 0:02:49]} 16. fxe4 {[%clk 0:02:39]}  Nxe3 {[%clk 0:02:48]} 17. Qxe3 {[%clk 0:02:40]}  Qb6 {[%clk 0:02:48]} 18. Qg3 {[%clk 0:02:32]}  Bd6 {[%clk 0:02:41]} 19. Qh3 {[%clk 0:02:15]}  Bxe4 {[%clk 0:02:35]} 20. Bg2 {[%clk 0:02:12]}  Bxg2 {[%clk 0:02:33]} 21. Qxg2 {[%clk 0:02:13]}  Rc8 {[%clk 0:02:30]} 22. h5 {[%clk 0:02:12]}  O-O {[%clk 0:02:19]} 23. g6 {[%clk 0:02:11]}  fxg6 {[%clk 0:02:07]} 24. hxg6 {[%clk 0:02:11]}  h6 {[%clk 0:02:08]} 25. Qh3 {[%clk 0:02:01]}  Be5 {[%clk 0:01:04]} 26. Nxe6 {[%clk 0:01:47]}  Rf2 {[%clk 0:00:55]} 27. Qb3 {[%clk 0:01:31]}  Kh8 {[%clk 0:00:08]} 28. Rxd7 {[%clk 0:01:29]}  Rxe2 {[%clk 0:00:06]} 29. Rxh6+ {[%clk 0:01:29]}  gxh6 {[%clk 0:00:06]} 30. Rh7+ {[%clk 0:01:29]}  Kg8 {[%clk 0:00:06]} 31. Nc5+ {[%clk 0:01:26]} 1-0


[Site "https://www.chess.com"]

[Event "Titled Tuesday Blitz March 29 Late 2022"]
[White "Vovk, Orest"]
[Black "Aravindh, Chithambaram VR."]
[WhiteFideId "14113490"]
[BlackFideId "5072786"]
[WhiteElo "2203"]
[BlackElo "2561"]
[Result "1-0"]
[Round "07"]
[TimeControl "180+1"]
[Date "2022.03.29"]
[WhiteClock "0:01:34"]
[BlackClock "0:02:03"]

1. h4 {[%clk 0:03:00]}  h5 {[%clk 0:02:58]} 2. Nf3 {[%clk 0:02:59]}  g6 {[%clk 0:02:58]} 3. Ng5 {[%clk 0:02:58]}  Bg7 {[%clk 0:02:57]} 4. d4 {[%clk 0:02:55]}  d5 {[%clk 0:02:52]} 5. Nc3 {[%clk 0:02:54]}  Nc6 {[%clk 0:02:46]} 6. e4 {[%clk 0:02:47]}  dxe4 {[%clk 0:02:45]} 7. d5 {[%clk 0:02:48]}  e6 {[%clk 0:02:46]} 8. dxc6 {[%clk 0:02:42]}  Qxd1+ {[%clk 0:02:34]} 9. Nxd1 {[%clk 0:02:40]}  bxc6 {[%clk 0:02:34]} 10. Nxe4 {[%clk 0:02:39]}  f5 {[%clk 0:02:30]} 11. Ng5 {[%clk 0:02:36]}  Nf6 {[%clk 0:02:28]} 12. Bc4 {[%clk 0:02:33]}  Nd5 {[%clk 0:02:27]} 13. O-O {[%clk 0:02:19]}  Ke7 {[%clk 0:02:24]} 14. Re1 {[%clk 0:02:18]}  e5 {[%clk 0:02:23]} 15. Ne3 {[%clk 0:02:06]}  Rd8 {[%clk 0:02:20]} 16. b3 {[%clk 0:02:04]}  Bf6 {[%clk 0:02:12]} 17. Ba3+ {[%clk 0:02:01]}  Ke8 {[%clk 0:02:12]} 18. Rad1 {[%clk 0:01:56]}  Bb7 {[%clk 0:02:10]} 19. f4 {[%clk 0:01:37]}  Nxe3 {[%clk 0:02:03]} 20. Bf7# {[%clk 0:01:34]} 1-0


[Site "https://www.chess.com"]

[Event "Titled Tuesday Blitz March 29 Late 2022"]
[White "Winkels, Marcel"]
[Black "Fiol, Fabrice"]
[WhiteFideId "1003887"]
[BlackFideId "611670"]
[WhiteElo "1900"]
[BlackElo "2398"]
[Result "0-1"]
[Round "07"]
[TimeControl "180+1"]
[Date "2022.03.30"]
[WhiteClock "0:00:03"]
[BlackClock "0:00:08"]

1. e4 {[%clk 0:03:00]}  c5 {[%clk 0:02:52]} 2. Nf3 {[%clk 0:03:01]}  e6 {[%clk 0:02:52]} 3. d4 {[%clk 0:02:59]}  cxd4 {[%clk 0:02:51]} 4. Nxd4 {[%clk 0:03:00]}  a6 {[%clk 0:02:51]} 5. g3 {[%clk 0:03:00]}  Nc6 {[%clk 0:02:48]} 6. Bg2 {[%clk 0:02:59]}  h5 {[%clk 0:02:46]} 7. h3 {[%clk 0:02:52]}  Qc7 {[%clk 0:02:46]} 8. Be3 {[%clk 0:02:49]}  Ne5 {[%clk 0:02:45]} 9. Bf4 {[%clk 0:02:32]}  Bc5 {[%clk 0:02:39]} 10. O-O {[%clk 0:02:29]}  d6 {[%clk 0:02:38]} 11. c3 {[%clk 0:02:22]}  Ne7 {[%clk 0:02:37]} 12. Nd2 {[%clk 0:02:17]}  b5 {[%clk 0:02:36]} 13. N4b3 {[%clk 0:02:11]}  Ba7 {[%clk 0:02:31]} 14. Rc1 {[%clk 0:02:04]}  Nd3 {[%clk 0:02:16]} 15. Rc2 {[%clk 0:01:54]}  Bb7 {[%clk 0:02:01]} 16. c4 {[%clk 0:01:51]}  Nxf4 {[%clk 0:01:55]} 17. gxf4 {[%clk 0:01:46]}  b4 {[%clk 0:01:51]} 18. Qe2 {[%clk 0:01:31]}  Ng6 {[%clk 0:01:50]} 19. Qf3 {[%clk 0:01:14]}  a5 {[%clk 0:01:47]} 20. f5 {[%clk 0:01:07]}  Nh4 {[%clk 0:01:37]} 21. Qg3 {[%clk 0:01:05]}  Nxg2 {[%clk 0:01:37]} 22. Qxg2 {[%clk 0:01:02]}  Kf8 {[%clk 0:01:11]} 23. fxe6 {[%clk 0:00:59]}  fxe6 {[%clk 0:01:11]} 24. Qg6 {[%clk 0:00:56]}  Rh6 {[%clk 0:01:08]} 25. Qg5 {[%clk 0:00:55]}  Qf7 {[%clk 0:01:00]} 26. Kh2 {[%clk 0:00:29]}  Rg6 {[%clk 0:00:57]} 27. Qh4 {[%clk 0:00:27]}  a4 {[%clk 0:00:55]} 28. Na5 {[%clk 0:00:21]}  Bd4 {[%clk 0:00:45]} 29. Nxb7 {[%clk 0:00:18]}  Qxb7 {[%clk 0:00:43]} 30. f3 {[%clk 0:00:17]}  Qf7 {[%clk 0:00:22]} 31. c5 {[%clk 0:00:14]}  dxc5 {[%clk 0:00:19]} 32. Nc4 {[%clk 0:00:13]}  Kg8 {[%clk 0:00:13]} 33. Rg2 {[%clk 0:00:11]}  Rxg2+ {[%clk 0:00:12]} 34. Kxg2 {[%clk 0:00:11]}  Rf8 {[%clk 0:00:12]} 35. Nd6 {[%clk 0:00:08]}  Qg6+ {[%clk 0:00:11]} 36. Kh1 {[%clk 0:00:06]}  Be5 {[%clk 0:00:11]} 37. Nc4 {[%clk 0:00:05]}  Bg3 {[%clk 0:00:10]} 38. Qe7 {[%clk 0:00:03]}  Rf7 {[%clk 0:00:08]} 39. Qe8+ {[%clk 0:00:03]}  Kh7 {[%clk 0:00:08]} 0-1


[Site "https://www.chess.com"]

[Event "Titled Tuesday Blitz March 29 Late 2022"]
[White "Yuan, Qingyu"]
[Black "Goryachkina, Aleksandra"]
[WhiteFideId "8609772"]
[BlackFideId "4147103"]
[WhiteElo "2359"]
[BlackElo "2426"]
[Result "1-0"]
[Round "07"]
[TimeControl "180+1"]
[Date "2022.03.29"]
[WhiteClock "0:00:14"]
[BlackClock "0:00:02"]

1. e4 {[%clk 0:03:00]}  e6 {[%clk 0:02:59]} 2. d4 {[%clk 0:03:01]}  d5 {[%clk 0:03:00]} 3. e5 {[%clk 0:03:01]}  c5 {[%clk 0:02:59]} 4. c3 {[%clk 0:03:02]}  Nc6 {[%clk 0:03:00]} 5. Nf3 {[%clk 0:03:01]}  Nge7 {[%clk 0:03:00]} 6. Bd3 {[%clk 0:02:51]}  cxd4 {[%clk 0:02:59]} 7. O-O {[%clk 0:02:48]}  dxc3 {[%clk 0:02:51]} 8. bxc3 {[%clk 0:02:46]}  Ng6 {[%clk 0:02:45]} 9. Re1 {[%clk 0:02:40]}  Be7 {[%clk 0:02:44]} 10. g3 {[%clk 0:02:39]}  Qc7 {[%clk 0:02:37]} 11. Qe2 {[%clk 0:02:33]}  b6 {[%clk 0:02:29]} 12. h4 {[%clk 0:02:31]}  Bb7 {[%clk 0:02:28]} 13. h5 {[%clk 0:02:28]}  Nf8 {[%clk 0:02:28]} 14. Nbd2 {[%clk 0:02:23]}  O-O-O {[%clk 0:02:14]} 15. Nb3 {[%clk 0:02:22]}  f6 {[%clk 0:01:44]} 16. Bf4 {[%clk 0:02:05]}  fxe5 {[%clk 0:01:32]} 17. Nxe5 {[%clk 0:02:02]}  Bd6 {[%clk 0:01:32]} 18. Nd4 {[%clk 0:01:28]}  Bxe5 {[%clk 0:01:12]} 19. Nxc6 {[%clk 0:00:59]}  Bxf4 {[%clk 0:01:09]} 20. Nxd8 {[%clk 0:00:52]}  Qxd8 {[%clk 0:01:04]} 21. gxf4 {[%clk 0:00:52]}  Qh4 {[%clk 0:00:48]} 22. Qf3 {[%clk 0:00:37]}  g6 {[%clk 0:00:31]} 23. h6 {[%clk 0:00:26]}  Qxh6 {[%clk 0:00:25]} 24. a4 {[%clk 0:00:26]}  g5 {[%clk 0:00:21]} 25. f5 {[%clk 0:00:26]}  g4 {[%clk 0:00:20]} 26. Qg3 {[%clk 0:00:17]}  e5 {[%clk 0:00:02]} 27. Qxe5 {[%clk 0:00:14]} 1-0


[Site "https://www.chess.com"]

[Event "Titled Tuesday Blitz March 29 Late 2022"]
[White "Aggelis, Nikolaos"]
[Black "Arabidze, Meri"]
[WhiteFideId "4213220"]
[BlackFideId "13604040"]
[WhiteElo "2154"]
[BlackElo "2335"]
[Result "1/2-1/2"]
[Round "08"]
[TimeControl "180+1"]
[Date "2022.03.29"]
[WhiteClock "0:00:21"]
[BlackClock "0:00:12"]

1. d4 {[%clk 0:03:00]}  f5 {[%clk 0:02:59]} 2. Nc3 {[%clk 0:02:57]}  Nf6 {[%clk 0:02:58]} 3. Bg5 {[%clk 0:02:57]}  d5 {[%clk 0:02:59]} 4. Bxf6 {[%clk 0:02:56]}  exf6 {[%clk 0:03:00]} 5. e3 {[%clk 0:02:55]}  c6 {[%clk 0:03:00]} 6. Bd3 {[%clk 0:02:52]}  Na6 {[%clk 0:03:00]} 7. a3 {[%clk 0:02:51]}  Nc7 {[%clk 0:02:59]} 8. Qf3 {[%clk 0:02:50]}  g6 {[%clk 0:02:59]} 9. h3 {[%clk 0:02:50]}  Be6 {[%clk 0:02:58]} 10. Nge2 {[%clk 0:02:48]}  Bf7 {[%clk 0:02:54]} 11. g4 {[%clk 0:02:47]}  fxg4 {[%clk 0:02:49]} 12. hxg4 {[%clk 0:02:48]}  Bg7 {[%clk 0:02:40]} 13. O-O-O {[%clk 0:02:40]}  Ne6 {[%clk 0:02:39]} 14. Qg3 {[%clk 0:02:33]}  Qc7 {[%clk 0:02:37]} 15. f4 {[%clk 0:02:27]}  O-O-O {[%clk 0:02:36]} 16. Rh3 {[%clk 0:02:23]}  Kb8 {[%clk 0:02:28]} 17. Rdh1 {[%clk 0:02:22]}  h6 {[%clk 0:02:29]} 18. f5 {[%clk 0:02:17]}  gxf5 {[%clk 0:02:25]} 19. gxf5 {[%clk 0:02:15]}  Ng5 {[%clk 0:02:25]} 20. Qxc7+ {[%clk 0:02:09]}  Kxc7 {[%clk 0:02:26]} 21. Rg3 {[%clk 0:02:09]}  h5 {[%clk 0:02:16]} 22. Rh4 {[%clk 0:02:04]}  Bf8 {[%clk 0:02:06]} 23. Nf4 {[%clk 0:01:59]}  Bd6 {[%clk 0:02:05]} 24. Nce2 {[%clk 0:01:54]}  Rde8 {[%clk 0:02:03]} 25. Kd2 {[%clk 0:01:50]}  Re7 {[%clk 0:01:59]} 26. c3 {[%clk 0:01:33]}  b6 {[%clk 0:01:58]} 27. Bc2 {[%clk 0:01:33]}  a5 {[%clk 0:01:56]} 28. Kd3 {[%clk 0:01:34]}  Ne4 {[%clk 0:01:47]} 29. Rg7 {[%clk 0:01:28]}  c5 {[%clk 0:01:46]} 30. Ba4 {[%clk 0:01:23]}  c4+ {[%clk 0:01:27]} 31. Kc2 {[%clk 0:01:23]}  Ng5 {[%clk 0:01:25]} 32. Ng6 {[%clk 0:00:54]}  Bxg6 {[%clk 0:00:57]} 33. Rxe7+ {[%clk 0:00:54]}  Bxe7 {[%clk 0:00:58]} 34. fxg6 {[%clk 0:00:54]}  Ne6 {[%clk 0:00:44]} 35. Nf4 {[%clk 0:00:52]}  Nxf4 {[%clk 0:00:42]} 36. exf4 {[%clk 0:00:53]}  f5 {[%clk 0:00:42]} 37. g7 {[%clk 0:00:50]}  Rg8 {[%clk 0:00:39]} 38. Rxh5 {[%clk 0:00:50]}  Rxg7 {[%clk 0:00:38]} 39. Rxf5 {[%clk 0:00:50]}  Rg2+ {[%clk 0:00:38]} 40. Kb1 {[%clk 0:00:50]}  Kd6 {[%clk 0:00:36]} 41. Rh5 {[%clk 0:00:45]}  Rf2 {[%clk 0:00:32]} 42. Rh6+ {[%clk 0:00:45]}  Kc7 {[%clk 0:00:32]} 43. Rh7 {[%clk 0:00:44]}  Kd6 {[%clk 0:00:31]} 44. Rf7 {[%clk 0:00:39]}  Ke6 {[%clk 0:00:22]} 45. Be8 {[%clk 0:00:31]}  Bd6 {[%clk 0:00:16]} 46. f5+ {[%clk 0:00:28]}  Rxf5 {[%clk 0:00:15]} 47. Rxf5 {[%clk 0:00:20]}  Kxf5 {[%clk 0:00:16]} 48. Bf7 {[%clk 0:00:21]}  Ke4 {[%clk 0:00:16]} 49. Kc2 {[%clk 0:00:19]}  Bf4 {[%clk 0:00:14]} 50. Bg6+ {[%clk 0:00:18]}  Ke3 {[%clk 0:00:14]} 51. Bf5 {[%clk 0:00:18]}  Bg5 {[%clk 0:00:13]} 52. a4 {[%clk 0:00:18]}  Bh6 {[%clk 0:00:13]} 53. Be6 {[%clk 0:00:17]}  Ke4 {[%clk 0:00:12]} 54. Bg8 {[%clk 0:00:18]}  Bg5 {[%clk 0:00:12]} 55. Bh7+ {[%clk 0:00:18]}  Ke3 {[%clk 0:00:12]} 56. Bg6 {[%clk 0:00:19]}  Bh6 {[%clk 0:00:11]} 57. Bf5 {[%clk 0:00:19]}  Bg5 {[%clk 0:00:12]} 58. Bh7 {[%clk 0:00:19]}  Bh6 {[%clk 0:00:11]} 59. Bg6 {[%clk 0:00:19]}  Bg5 {[%clk 0:00:11]} 60. Bh7 {[%clk 0:00:20]}  Bh6 {[%clk 0:00:12]} 61. Bg6 {[%clk 0:00:21]}  Bg5 {[%clk 0:00:12]} 62. Bh7 {[%clk 0:00:21]} 1/2-1/2


[Site "https://www.chess.com"]

[Event "Titled Tuesday Blitz March 29 Late 2022"]
[White "Aldokhin, Ivan"]
[Black "Bryakin, Mikhail"]
[WhiteFideId "24115720"]
[BlackFideId "4165314"]
[WhiteElo "2231"]
[BlackElo "2417"]
[Result "1-0"]
[Round "08"]
[TimeControl "180+1"]
[Date "2022.03.29"]
[WhiteClock "0:00:04"]
[BlackClock "0:00:27"]

1. e4 {[%clk 0:03:00]}  c5 {[%clk 0:02:56]} 2. Nf3 {[%clk 0:03:00]}  e6 {[%clk 0:02:57]} 3. d4 {[%clk 0:03:00]}  cxd4 {[%clk 0:02:57]} 4. Nxd4 {[%clk 0:03:01]}  a6 {[%clk 0:02:56]} 5. Nc3 {[%clk 0:03:00]}  Qc7 {[%clk 0:02:56]} 6. Bd3 {[%clk 0:03:01]}  Bb4 {[%clk 0:02:56]} 7. Bd2 {[%clk 0:03:00]}  Nc6 {[%clk 0:02:56]} 8. Nxc6 {[%clk 0:02:57]}  bxc6 {[%clk 0:02:56]} 9. Qg4 {[%clk 0:02:50]}  g6 {[%clk 0:02:56]} 10. O-O {[%clk 0:02:47]}  h5 {[%clk 0:02:55]} 11. Qe2 {[%clk 0:02:43]}  Ne7 {[%clk 0:02:46]} 12. Nb5 {[%clk 0:02:18]}  axb5 {[%clk 0:02:37]} 13. Bxb4 {[%clk 0:02:17]}  d6 {[%clk 0:02:36]} 14. Bc3 {[%clk 0:02:08]}  e5 {[%clk 0:02:32]} 15. f4 {[%clk 0:02:07]}  f6 {[%clk 0:02:33]} 16. fxe5 {[%clk 0:02:02]}  fxe5 {[%clk 0:02:34]} 17. Qf3 {[%clk 0:01:45]}  Bg4 {[%clk 0:02:30]} 18. Qf6 {[%clk 0:01:34]}  Kd7 {[%clk 0:02:30]} 19. h3 {[%clk 0:01:34]}  Be6 {[%clk 0:02:30]} 20. a3 {[%clk 0:01:31]}  Qb6+ {[%clk 0:02:09]} 21. Kh2 {[%clk 0:01:28]}  g5 {[%clk 0:02:04]} 22. Rad1 {[%clk 0:01:05]}  Raf8 {[%clk 0:02:03]} 23. Qxg5 {[%clk 0:00:57]}  Rxf1 {[%clk 0:01:53]} 24. Bxf1 {[%clk 0:00:53]}  Rg8 {[%clk 0:01:30]} 25. Qxe5 {[%clk 0:00:45]}  d5 {[%clk 0:01:30]} 26. Bb4 {[%clk 0:00:32]}  c5 {[%clk 0:01:06]} 27. exd5 {[%clk 0:00:24]}  Bxh3 {[%clk 0:01:06]} 28. Be1 {[%clk 0:00:08]}  Qg6 {[%clk 0:00:57]} 29. Bg3 {[%clk 0:00:05]}  c4 {[%clk 0:00:42]} 30. gxh3 {[%clk 0:00:04]}  Qxc2+ {[%clk 0:00:43]} 31. Qe2 {[%clk 0:00:02]}  Qf5 {[%clk 0:00:42]} 32. Bg2 {[%clk 0:00:02]}  h4 {[%clk 0:00:41]} 33. Qe6+ {[%clk 0:00:03]}  Qxe6 {[%clk 0:00:38]} 34. dxe6+ {[%clk 0:00:03]}  Kxe6 {[%clk 0:00:39]} 35. Re1+ {[%clk 0:00:04]}  Kd7 {[%clk 0:00:37]} 36. Bxh4 {[%clk 0:00:04]}  Nf5 {[%clk 0:00:38]} 37. Bf2 {[%clk 0:00:04]}  Kd6 {[%clk 0:00:35]} 38. Be4 {[%clk 0:00:04]}  Ne7 {[%clk 0:00:36]} 39. Bg3+ {[%clk 0:00:03]}  Kc5 {[%clk 0:00:36]} 40. Rd1 {[%clk 0:00:04]}  Nc6 {[%clk 0:00:27]} 41. Bf2+ {[%clk 0:00:04]} 1-0


[Site "https://www.chess.com"]

[Event "Titled Tuesday Blitz March 29 Late 2022"]
[White "Bluebaum, Matthias"]
[Black "Kosteniuk, Alexandra"]
[WhiteFideId "24651516"]
[BlackFideId "4128125"]
[WhiteElo "2550"]
[BlackElo "2469"]
[Result "1-0"]
[Round "08"]
[TimeControl "180+1"]
[Date "2022.03.29"]
[WhiteClock "0:00:08"]
[BlackClock "0:00:18"]

1. b3 {[%clk 0:03:00]}  Nf6 {[%clk 0:02:56]} 2. Bb2 {[%clk 0:03:01]}  b6 {[%clk 0:02:56]} 3. Nf3 {[%clk 0:03:01]}  Bb7 {[%clk 0:02:56]} 4. g3 {[%clk 0:03:01]}  e6 {[%clk 0:02:55]} 5. Bg2 {[%clk 0:03:02]}  Be7 {[%clk 0:02:54]} 6. O-O {[%clk 0:03:02]}  O-O {[%clk 0:02:54]} 7. c4 {[%clk 0:03:03]}  d5 {[%clk 0:02:50]} 8. cxd5 {[%clk 0:03:02]}  Nxd5 {[%clk 0:02:50]} 9. Nc3 {[%clk 0:03:01]}  Nxc3 {[%clk 0:02:46]} 10. Bxc3 {[%clk 0:03:00]}  c5 {[%clk 0:02:46]} 11. d4 {[%clk 0:02:56]}  Nd7 {[%clk 0:02:42]} 12. Rc1 {[%clk 0:02:48]}  Nf6 {[%clk 0:02:40]} 13. dxc5 {[%clk 0:02:34]}  Bxc5 {[%clk 0:02:38]} 14. Qc2 {[%clk 0:02:35]}  Ne4 {[%clk 0:02:08]} 15. Ne5 {[%clk 0:02:14]}  f5 {[%clk 0:01:50]} 16. b4 {[%clk 0:01:59]}  Bd6 {[%clk 0:01:41]} 17. Qb3 {[%clk 0:01:59]}  Qe7 {[%clk 0:01:38]} 18. b5 {[%clk 0:01:36]}  Bd5 {[%clk 0:01:37]} 19. Nc6 {[%clk 0:01:34]}  Bxb3 {[%clk 0:01:23]} 20. Nxe7+ {[%clk 0:01:32]}  Bxe7 {[%clk 0:01:24]} 21. axb3 {[%clk 0:01:18]}  Nxc3 {[%clk 0:01:19]} 22. Rxc3 {[%clk 0:01:18]}  Rac8 {[%clk 0:01:19]} 23. Bc6 {[%clk 0:01:15]}  Rc7 {[%clk 0:01:11]} 24. Rd1 {[%clk 0:01:11]}  Bc5 {[%clk 0:01:05]} 25. Kg2 {[%clk 0:00:59]}  g6 {[%clk 0:01:05]} 26. Bd7 {[%clk 0:00:52]}  Kf7 {[%clk 0:00:49]} 27. Bc6 {[%clk 0:00:44]}  Kf6 {[%clk 0:00:47]} 28. e3 {[%clk 0:00:42]}  g5 {[%clk 0:00:33]} 29. Rc4 {[%clk 0:00:42]}  h6 {[%clk 0:00:31]} 30. Ra1 {[%clk 0:00:41]}  Rff7 {[%clk 0:00:30]} 31. Rd1 {[%clk 0:00:33]}  Ke5 {[%clk 0:00:30]} 32. f4+ {[%clk 0:00:31]}  Kf6 {[%clk 0:00:31]} 33. e4 {[%clk 0:00:30]}  gxf4 {[%clk 0:00:29]} 34. exf5 {[%clk 0:00:28]}  exf5 {[%clk 0:00:27]} 35. Rxf4 {[%clk 0:00:27]}  Rfe7 {[%clk 0:00:27]} 36. Rdf1 {[%clk 0:00:22]}  Re5 {[%clk 0:00:28]} 37. g4 {[%clk 0:00:22]}  Re2+ {[%clk 0:00:25]} 38. Kh3 {[%clk 0:00:18]}  Re3+ {[%clk 0:00:24]} 39. R1f3 {[%clk 0:00:18]}  Rxf3+ {[%clk 0:00:22]} 40. Rxf3 {[%clk 0:00:19]}  Ke5 {[%clk 0:00:22]} 41. Rxf5+ {[%clk 0:00:20]}  Kd4 {[%clk 0:00:22]} 42. Rf6 {[%clk 0:00:18]}  Rh7 {[%clk 0:00:22]} 43. Kg3 {[%clk 0:00:14]}  Kc3 {[%clk 0:00:20]} 44. Rf3+ {[%clk 0:00:14]}  Kb2 {[%clk 0:00:20]} 45. Kh4 {[%clk 0:00:13]}  Be7+ {[%clk 0:00:19]} 46. Kh5 {[%clk 0:00:13]}  Bg5 {[%clk 0:00:20]} 47. h4 {[%clk 0:00:14]}  Bd2 {[%clk 0:00:20]} 48. Rf2 {[%clk 0:00:10]}  Kc1 {[%clk 0:00:20]} 49. Re2 {[%clk 0:00:06]}  Rg7 {[%clk 0:00:18]} 50. Re6 {[%clk 0:00:05]}  Kc2 {[%clk 0:00:18]} 51. Rd6 {[%clk 0:00:06]}  Bc1 {[%clk 0:00:17]} 52. Bf3 {[%clk 0:00:04]}  Kxb3 {[%clk 0:00:17]} 53. Rxh6 {[%clk 0:00:05]}  Bxh6 {[%clk 0:00:16]} 54. Kxh6 {[%clk 0:00:05]}  Rf7 {[%clk 0:00:17]} 55. Bd5+ {[%clk 0:00:06]}  Kb4 {[%clk 0:00:17]} 56. Bxf7 {[%clk 0:00:07]}  Kxb5 {[%clk 0:00:17]} 57. g5 {[%clk 0:00:07]}  a5 {[%clk 0:00:18]} 58. g6 {[%clk 0:00:08]} 1-0


[Site "https://www.chess.com"]